{"text_format":"3","workbook":"xlsx","n_sheets":1,"sheets":["INVENTURNI POPIS OPREME"],"not_rendered":{"defined_names":5},"read":"whole","date_system":"1900"}

{"sheet":"INVENTURNI POPIS OPREME","index":0,"n_rows":9,"n_cols":19,"rows_kept":9,"merged":[[0,1,0,5],[0,6,0,9],[0,10,0,12],[0,13,0,14],[2,1,2,6],[2,7,2,18]]}
[null,"INVENTURNI POPIS OPREME"]
[]
[null,"FIZIČKO STANJE",{"$nulls":5},"FINANCIJSKO STANJE"]
[null,"Stavka imovine ili serijski broj","Opis stavke (proizvođač i model)","Mjesto","Stanje","Dobavljač","Preostale godine službe ","Početna vrijednost","Učešće","Datum kupnja ili najma","Rok zajma u godinama","Stopa zajma","Mjesečni anuitet","Mjesečni operativni troškovi","Ukupni mjesečni troškovi","Očekivana vrijednost na kraju roka zajma","Godišnja linearna amortizacija","Mjesečna linearna amortizacija","Trenutna vrijednost"]
[null,123,"Proizvođač, model","Glavna poslovnica","Dobro","lokalni",5,{"v":150000,"d":"150,000.00 kn"},{"v":25000,"d":"25,000.00 kn"},{"$f":"DATE(YEAR(TODAY())-2, 1,1)","v":"2016-01-01"},4,{"v":0.1,"d":"10.00%"},{"$f":"IFERROR(IF(AND(Podaci[[#This Row],[Početna vrijednost]]>0,Podaci[[#This Row],[Početna vrijednost]]<>Podaci[[#This Row],[Učešće]]),-1*PMT(Podaci[[#This Row],[Stopa zajma]]/12,Podaci[[#This Row],[Rok zajma u godinama]]*12,Podaci[[#This Row],[Početna vrijednost]]-Podaci[[#This Row],[Učešće]]),0),0)","v":{"v":3170.3229293433988,"d":"3,170.32 kn"}},{"v":1000,"d":"1,000.00 kn"},{"$f":"IFERROR(Podaci[[#This Row],[Mjesečni operativni troškovi]]+Podaci[[#This Row],[Mjesečni anuitet]],\"\")","v":{"v":4170.322929343399,"d":"4,170.32 kn"}},{"v":100000,"d":"100,000.00 kn"},{"$f":"IFERROR(IF(Podaci[[#This Row],[Početna vrijednost]]>0,SLN(Podaci[[#This Row],[Početna vrijednost]],Podaci[[#This Row],[Očekivana vrijednost na kraju roka zajma]],Podaci[[#This Row],[Preostale godine službe ]]),0),0)","v":{"v":10000,"d":"10,000.00 kn"}},{"$f":"IFERROR(Podaci[[#This Row],[Godišnja linearna amortizacija]]/12,0)","v":{"v":833.3333333333334,"d":"833.33 kn"}},{"$f":"IFERROR(Podaci[[#This Row],[Početna vrijednost]]-(Podaci[[#This Row],[Godišnja linearna amortizacija]]*((TODAY()-Podaci[[#This Row],[Datum kupnja ili najma]])/365)),0)","v":{"v":125068.49315068492,"d":"125,068.49 kn"}}]
[null,456,"Proizvođač, model","Glavna poslovnica","Izvrsno","lokalni",3,{"v":25000,"d":"25,000.00 kn"},{"v":25000,"d":"25,000.00 kn"},{"$f":"DATE(YEAR(TODAY())-1, 1,1)","v":"2017-01-01"},null,null,{"$f":"IFERROR(IF(AND(Podaci[[#This Row],[Početna vrijednost]]>0,Podaci[[#This Row],[Početna vrijednost]]<>Podaci[[#This Row],[Učešće]]),-1*PMT(Podaci[[#This Row],[Stopa zajma]]/12,Podaci[[#This Row],[Rok zajma u godinama]]*12,Podaci[[#This Row],[Početna vrijednost]]-Podaci[[#This Row],[Učešće]]),0),0)","v":{"v":0,"d":"0.00 kn"}},{"v":100,"d":"100.00 kn"},{"$f":"IFERROR(Podaci[[#This Row],[Mjesečni operativni troškovi]]+Podaci[[#This Row],[Mjesečni anuitet]],\"\")","v":{"v":100,"d":"100.00 kn"}},null,{"$f":"IFERROR(IF(Podaci[[#This Row],[Početna vrijednost]]>0,SLN(Podaci[[#This Row],[Početna vrijednost]],Podaci[[#This Row],[Očekivana vrijednost na kraju roka zajma]],Podaci[[#This Row],[Preostale godine službe ]]),0),0)","v":{"v":8333.333333333334,"d":"8,333.33 kn"}},{"$f":"IFERROR(Podaci[[#This Row],[Godišnja linearna amortizacija]]/12,0)","v":{"v":694.4444444444445,"d":"694.44 kn"}},{"$f":"IFERROR(Podaci[[#This Row],[Početna vrijednost]]-(Podaci[[#This Row],[Godišnja linearna amortizacija]]*((TODAY()-Podaci[[#This Row],[Datum kupnja ili najma]])/365)),0)","v":{"v":12579.908675799084,"d":"12,579.91 kn"}}]
[null,789,"Proizvođač, model","Istočna obala","Solidno","lokalni",6,{"v":250000,"d":"250,000.00 kn"},{"v":100000,"d":"100,000.00 kn"},{"$f":"TODAY()","v":"2018-06-29"},5,{"v":0.05,"d":"5.00%"},{"$f":"IFERROR(IF(AND(Podaci[[#This Row],[Početna vrijednost]]>0,Podaci[[#This Row],[Početna vrijednost]]<>Podaci[[#This Row],[Učešće]]),-1*PMT(Podaci[[#This Row],[Stopa zajma]]/12,Podaci[[#This Row],[Rok zajma u godinama]]*12,Podaci[[#This Row],[Početna vrijednost]]-Podaci[[#This Row],[Učešće]]),0),0)","v":{"v":2830.6850466016404,"d":"2,830.69 kn"}},{"v":200,"d":"200.00 kn"},{"$f":"IFERROR(Podaci[[#This Row],[Mjesečni operativni troškovi]]+Podaci[[#This Row],[Mjesečni anuitet]],\"\")","v":{"v":3030.6850466016404,"d":"3,030.69 kn"}},{"v":7500,"d":"7,500.00 kn"},{"$f":"IFERROR(IF(Podaci[[#This Row],[Početna vrijednost]]>0,SLN(Podaci[[#This Row],[Početna vrijednost]],Podaci[[#This Row],[Očekivana vrijednost na kraju roka zajma]],Podaci[[#This Row],[Preostale godine službe ]]),0),0)","v":{"v":40416.666666666664,"d":"40,416.67 kn"}},{"$f":"IFERROR(Podaci[[#This Row],[Godišnja linearna amortizacija]]/12,0)","v":{"v":3368.055555555555,"d":"3,368.06 kn"}},{"$f":"IFERROR(Podaci[[#This Row],[Početna vrijednost]]-(Podaci[[#This Row],[Godišnja linearna amortizacija]]*((TODAY()-Podaci[[#This Row],[Datum kupnja ili najma]])/365)),0)","v":{"v":250000,"d":"250,000.00 kn"}}]
[{"$nulls":12},{"$f":"IFERROR(IF(AND(Podaci[[#This Row],[Početna vrijednost]]>0,Podaci[[#This Row],[Početna vrijednost]]<>Podaci[[#This Row],[Učešće]]),-1*PMT(Podaci[[#This Row],[Stopa zajma]]/12,Podaci[[#This Row],[Rok zajma u godinama]]*12,Podaci[[#This Row],[Početna vrijednost]]-Podaci[[#This Row],[Učešće]]),0),0)","v":{"v":0,"d":"0.00 kn"}},null,{"$f":"IFERROR(Podaci[[#This Row],[Mjesečni operativni troškovi]]+Podaci[[#This Row],[Mjesečni anuitet]],\"\")","v":{"v":0,"d":"0.00 kn"}},null,{"$f":"IFERROR(IF(Podaci[[#This Row],[Početna vrijednost]]>0,SLN(Podaci[[#This Row],[Početna vrijednost]],Podaci[[#This Row],[Očekivana vrijednost na kraju roka zajma]],Podaci[[#This Row],[Preostale godine službe ]]),0),0)","v":{"v":0,"d":"0.00 kn"}},{"$f":"IFERROR(Podaci[[#This Row],[Godišnja linearna amortizacija]]/12,0)","v":{"v":0,"d":"0.00 kn"}},{"$f":"IFERROR(Podaci[[#This Row],[Početna vrijednost]]-(Podaci[[#This Row],[Godišnja linearna amortizacija]]*((TODAY()-Podaci[[#This Row],[Datum kupnja ili najma]])/365)),0)","v":{"v":0,"d":"0.00 kn"}}]
[{"$nulls":12},{"$f":"IFERROR(IF(AND(Podaci[[#This Row],[Početna vrijednost]]>0,Podaci[[#This Row],[Početna vrijednost]]<>Podaci[[#This Row],[Učešće]]),-1*PMT(Podaci[[#This Row],[Stopa zajma]]/12,Podaci[[#This Row],[Rok zajma u godinama]]*12,Podaci[[#This Row],[Početna vrijednost]]-Podaci[[#This Row],[Učešće]]),0),0)","v":{"v":0,"d":"0.00 kn"}},null,{"$f":"IFERROR(Podaci[[#This Row],[Mjesečni operativni troškovi]]+Podaci[[#This Row],[Mjesečni anuitet]],\"\")","v":{"v":0,"d":"0.00 kn"}},null,{"$f":"IFERROR(IF(Podaci[[#This Row],[Početna vrijednost]]>0,SLN(Podaci[[#This Row],[Početna vrijednost]],Podaci[[#This Row],[Očekivana vrijednost na kraju roka zajma]],Podaci[[#This Row],[Preostale godine službe ]]),0),0)","v":{"v":0,"d":"0.00 kn"}},{"$f":"IFERROR(Podaci[[#This Row],[Godišnja linearna amortizacija]]/12,0)","v":{"v":0,"d":"0.00 kn"}},{"$f":"IFERROR(Podaci[[#This Row],[Početna vrijednost]]-(Podaci[[#This Row],[Godišnja linearna amortizacija]]*((TODAY()-Podaci[[#This Row],[Datum kupnja ili najma]])/365)),0)","v":{"v":0,"d":"0.00 kn"}}]